[Event "Titled Tuesday Blitz January 17 Late 2023"]
[White "Zampronha, Wladimir Camilo"]
[Black "Khandelwal, Ankush"]
[WhiteFideId "2103087"]
[BlackFideId "413470"]
[WhiteElo "2176"]
[BlackElo "2205"]
[Result "0-1"]
[Round "05"]
[TimeControl "180+2"]
[Date "2023.01.17"]
[WhiteClock "0:00:27"]
[BlackClock "0:00:14"]

1. e4 {[%clk 0:03:00]}  c5 {[%clk 0:02:59]} 2. Nf3 {[%clk 0:02:59]}  d6 {[%clk 0:03:00]} 3. d4 {[%clk 0:03:00]}  cxd4 {[%clk 0:03:01]} 4. Nxd4 {[%clk 0:03:00]}  Nf6 {[%clk 0:03:01]} 5. Nc3 {[%clk 0:03:01]}  a6 {[%clk 0:03:02]} 6. Bg5 {[%clk 0:03:01]}  e6 {[%clk 0:03:02]} 7. f4 {[%clk 0:03:01]}  Be7 {[%clk 0:03:02]} 8. Qf3 {[%clk 0:03:02]}  Qc7 {[%clk 0:03:02]} 9. O-O-O {[%clk 0:03:03]}  Nbd7 {[%clk 0:03:02]} 10. g4 {[%clk 0:03:03]}  b5 {[%clk 0:03:02]} 11. Bxf6 {[%clk 0:03:03]}  Nxf6 {[%clk 0:03:02]} 12. g5 {[%clk 0:03:04]}  Nd7 {[%clk 0:03:02]} 13. f5 {[%clk 0:03:04]}  O-O {[%clk 0:03:02]} 14. fxe6 {[%clk 0:02:22]}  Ne5 {[%clk 0:02:51]} 15. exf7+ {[%clk 0:02:22]}  Rxf7 {[%clk 0:02:51]} 16. Qg3 {[%clk 0:02:21]}  Bb7 {[%clk 0:02:45]} 17. Bh3 {[%clk 0:02:09]}  Kh8 {[%clk 0:02:41]} 18. Be6 {[%clk 0:01:55]}  Rff8 {[%clk 0:02:32]} 19. Kb1 {[%clk 0:01:52]}  b4 {[%clk 0:02:25]} 20. Nd5 {[%clk 0:01:52]}  Bxd5 {[%clk 0:02:25]} 21. Bxd5 {[%clk 0:01:51]}  Rac8 {[%clk 0:02:21]} 22. Bb3 {[%clk 0:01:37]}  Qa7 {[%clk 0:02:09]} 23. Ne6 {[%clk 0:01:37]}  Rf3 {[%clk 0:02:08]} 24. Qe1 {[%clk 0:01:25]}  a5 {[%clk 0:02:05]} 25. Rf1 {[%clk 0:01:19]}  a4 {[%clk 0:01:51]} 26. Bd5 {[%clk 0:01:19]}  b3 {[%clk 0:01:45]} 27. cxb3 {[%clk 0:01:16]}  axb3 {[%clk 0:01:45]} 28. Bxb3 {[%clk 0:01:10]}  Rxb3 {[%clk 0:01:04]} 29. axb3 {[%clk 0:01:09]}  Ra8 {[%clk 0:01:02]} 30. Qf2 {[%clk 0:01:05]}  Qa2+ {[%clk 0:01:00]} 31. Kc2 {[%clk 0:01:05]}  Rc8+ {[%clk 0:01:00]} 32. Kd2 {[%clk 0:00:50]}  Qxb3 {[%clk 0:00:25]} 33. Nd4 {[%clk 0:00:44]}  Bxg5+ {[%clk 0:00:16]} 34. Ke1 {[%clk 0:00:45]}  Qb4+ {[%clk 0:00:16]} 35. Rd2 {[%clk 0:00:43]}  Rc1+ {[%clk 0:00:14]} 36. Ke2 {[%clk 0:00:43]}  Qc4+ {[%clk 0:00:13]} 37. Rd3 {[%clk 0:00:27]}  Qxd3# {[%clk 0:00:14]} 0-1


[Site "https://www.chess.com"]

[Event "Titled Tuesday Blitz January 17 Late 2023"]
[White "Ward, Ieuan C"]
[Black "Artemenko, Oleg"]
[WhiteFideId "406627"]
[BlackFideId "14201798"]
[WhiteElo "2028"]
[BlackElo "2246"]
[Result "0-1"]
[Round "05"]
[TimeControl "180+2"]
[Date "2023.01.17"]
[WhiteClock "0:00:06"]
[BlackClock "0:01:23"]

1. e4 {[%clk 0:03:00]}  c6 {[%clk 0:02:58]} 2. d4 {[%clk 0:03:00]}  d5 {[%clk 0:02:59]} 3. Nc3 {[%clk 0:03:01]}  dxe4 {[%clk 0:02:58]} 4. Nxe4 {[%clk 0:03:02]}  Nf6 {[%clk 0:02:59]} 5. Nxf6+ {[%clk 0:03:02]}  exf6 {[%clk 0:03:00]} 6. Nf3 {[%clk 0:03:03]}  Bd6 {[%clk 0:03:00]} 7. Be2 {[%clk 0:03:01]}  O-O {[%clk 0:02:59]} 8. O-O {[%clk 0:03:01]}  Bf5 {[%clk 0:02:59]} 9. Nh4 {[%clk 0:02:56]}  Bg6 {[%clk 0:02:54]} 10. Nxg6 {[%clk 0:02:55]}  hxg6 {[%clk 0:02:55]} 11. c4 {[%clk 0:02:51]}  Qc7 {[%clk 0:02:53]} 12. h3 {[%clk 0:02:47]}  Rd8 {[%clk 0:02:54]} 13. Be3 {[%clk 0:02:44]}  Nd7 {[%clk 0:02:54]} 14. Qc2 {[%clk 0:02:20]}  Nf8 {[%clk 0:02:51]} 15. Rfd1 {[%clk 0:02:18]}  Bf4 {[%clk 0:02:51]} 16. Bxf4 {[%clk 0:02:10]}  Qxf4 {[%clk 0:02:52]} 17. d5 {[%clk 0:02:03]}  cxd5 {[%clk 0:02:52]} 18. cxd5 {[%clk 0:02:01]}  Rac8 {[%clk 0:02:52]} 19. Qb3 {[%clk 0:02:00]}  Nd7 {[%clk 0:02:46]} 20. Qxb7 {[%clk 0:01:24]}  Rc2 {[%clk 0:02:43]} 21. Re1 {[%clk 0:01:02]}  Qd4 {[%clk 0:02:09]} 22. Rab1 {[%clk 0:00:47]}  Ne5 {[%clk 0:02:08]} 23. Qb3 {[%clk 0:00:34]}  Rd2 {[%clk 0:02:03]} 24. Rbd1 {[%clk 0:00:26]}  Rxd5 {[%clk 0:02:03]} 25. Rxd2 {[%clk 0:00:20]}  Qxd2 {[%clk 0:02:04]} 26. Rd1 {[%clk 0:00:19]}  Qxe2 {[%clk 0:01:56]} 27. Qxd5 {[%clk 0:00:18]}  Qxb2 {[%clk 0:01:56]} 28. Qd8+ {[%clk 0:00:18]}  Kh7 {[%clk 0:01:55]} 29. Qd2 {[%clk 0:00:18]}  Qa3 {[%clk 0:01:51]} 30. Rc1 {[%clk 0:00:17]}  Qe7 {[%clk 0:01:37]} 31. Re1 {[%clk 0:00:10]}  Qc5 {[%clk 0:01:36]} 32. Rc1 {[%clk 0:00:10]}  Qb6 {[%clk 0:01:36]} 33. Qe3 {[%clk 0:00:09]}  Qa6 {[%clk 0:01:33]} 34. a3 {[%clk 0:00:09]}  Qa4 {[%clk 0:01:30]} 35. Rb1 {[%clk 0:00:09]}  a5 {[%clk 0:01:29]} 36. Re1 {[%clk 0:00:08]}  Qc2 {[%clk 0:01:28]} 37. Qe2 {[%clk 0:00:07]}  Qb3 {[%clk 0:01:28]} 38. Qe3 {[%clk 0:00:07]}  Qa2 {[%clk 0:01:28]} 39. Re2 {[%clk 0:00:07]}  Qb1+ {[%clk 0:01:28]} 40. Kh2 {[%clk 0:00:07]}  Qb8 {[%clk 0:01:28]} 41. g3 {[%clk 0:00:07]}  a4 {[%clk 0:01:25]} 42. Qe4 {[%clk 0:00:07]}  Qb3 {[%clk 0:01:24]} 43. Rd2 {[%clk 0:00:06]}  Nf3+ {[%clk 0:01:23]} 0-1


[Site "https://www.chess.com"]

[Event "Titled Tuesday Blitz January 17 Late 2023"]
[White "Smith, Garrett L"]
[Black "Odegov, Artem"]
[WhiteFideId "2024829"]
[BlackFideId "34183644"]
[WhiteElo "2047"]
[BlackElo "2261"]
[Result "0-1"]
[Round "05"]
[TimeControl "180+2"]
[Date "2023.01.17"]
[WhiteClock "0:00:39"]
[BlackClock "0:00:50"]

1. e4 {[%clk 0:03:00]}  c5 {[%clk 0:02:59]} 2. a3 {[%clk 0:03:00]}  g6 {[%clk 0:02:43]} 3. b4 {[%clk 0:03:00]}  Bg7 {[%clk 0:02:42]} 4. Nc3 {[%clk 0:03:00]}  cxb4 {[%clk 0:02:31]} 5. axb4 {[%clk 0:03:00]}  Nc6 {[%clk 0:02:31]} 6. Rb1 {[%clk 0:02:57]}  d6 {[%clk 0:02:29]} 7. Nf3 {[%clk 0:02:57]}  Bg4 {[%clk 0:02:28]} 8. b5 {[%clk 0:02:47]}  Nd4 {[%clk 0:02:23]} 9. Be2 {[%clk 0:02:45]}  Nxe2 {[%clk 0:02:21]} 10. Qxe2 {[%clk 0:02:44]}  Nf6 {[%clk 0:02:08]} 11. O-O {[%clk 0:02:38]}  O-O {[%clk 0:02:07]} 12. h3 {[%clk 0:02:36]}  Bd7 {[%clk 0:01:59]} 13. d4 {[%clk 0:02:33]}  Qc7 {[%clk 0:01:57]} 14. Bd2 {[%clk 0:02:31]}  Rfc8 {[%clk 0:01:53]} 15. Rfe1 {[%clk 0:02:29]}  Qc4 {[%clk 0:01:51]} 16. e5 {[%clk 0:02:12]}  Qxe2 {[%clk 0:01:40]} 17. Rxe2 {[%clk 0:02:11]}  dxe5 {[%clk 0:01:41]} 18. dxe5 {[%clk 0:02:06]}  Ne8 {[%clk 0:01:36]} 19. Nd5 {[%clk 0:02:04]}  Rxc2 {[%clk 0:01:35]} 20. Nxe7+ {[%clk 0:01:58]}  Kh8 {[%clk 0:01:35]} 21. Rc1 {[%clk 0:01:43]}  Rxc1+ {[%clk 0:01:29]} 22. Bxc1 {[%clk 0:01:44]}  Bxb5 {[%clk 0:01:28]} 23. Rb2 {[%clk 0:01:43]}  Bc4 {[%clk 0:01:27]} 24. Rxb7 {[%clk 0:01:40]}  a5 {[%clk 0:01:26]} 25. Nc6 {[%clk 0:01:29]}  a4 {[%clk 0:01:24]} 26. Ba3 {[%clk 0:01:29]}  Bd5 {[%clk 0:01:17]} 27. Rb6 {[%clk 0:01:29]}  Nc7 {[%clk 0:01:02]} 28. Ncd4 {[%clk 0:01:22]}  Ne6 {[%clk 0:00:57]} 29. Nxe6 {[%clk 0:01:18]}  Bxe6 {[%clk 0:00:58]} 30. Ng5 {[%clk 0:01:14]}  Bb3 {[%clk 0:00:57]} 31. Rb7 {[%clk 0:01:12]}  Kg8 {[%clk 0:00:52]} 32. f4 {[%clk 0:01:12]}  Bf8 {[%clk 0:00:51]} 33. Bxf8 {[%clk 0:01:05]}  Kxf8 {[%clk 0:00:52]} 34. Nxh7+ {[%clk 0:00:57]}  Kg7 {[%clk 0:00:52]} 35. Ng5 {[%clk 0:00:54]}  a3 {[%clk 0:00:52]} 36. e6 {[%clk 0:00:44]}  a2 {[%clk 0:00:51]} 37. Rxf7+ {[%clk 0:00:40]}  Kg8 {[%clk 0:00:51]} 38. Nh7 {[%clk 0:00:40]}  a1=Q+ {[%clk 0:00:51]} 39. Kh2 {[%clk 0:00:39]}  Bxe6 {[%clk 0:00:50]} 0-1


[Site "https://www.chess.com"]

[Event "Titled Tuesday Blitz January 17 Late 2023"]
[White "Kovacs, Klara"]
[Black "Petukhov, Dmitry"]
[WhiteFideId "733210"]
[BlackFideId "4142748"]
[WhiteElo "2121"]
[BlackElo "2350"]
[Result "0-1"]
[Round "05"]
[TimeControl "180+2"]
[Date "2023.01.17"]
[WhiteClock "0:00:05"]
[BlackClock "0:00:27"]

1. d4 {[%clk 0:02:53]}  e5 {[%clk 0:02:59]} 2. dxe5 {[%clk 0:02:51]}  Nc6 {[%clk 0:02:59]} 3. c4 {[%clk 0:02:47]}  Nxe5 {[%clk 0:02:58]} 4. e3 {[%clk 0:02:48]}  Nf6 {[%clk 0:02:57]} 5. Nc3 {[%clk 0:02:48]}  Bb4 {[%clk 0:02:57]} 6. Qc2 {[%clk 0:02:45]}  d5 {[%clk 0:02:55]} 7. cxd5 {[%clk 0:02:42]}  Nxd5 {[%clk 0:02:51]} 8. Bd2 {[%clk 0:02:40]}  Nxc3 {[%clk 0:02:44]} 9. Bxc3 {[%clk 0:02:41]}  Bxc3+ {[%clk 0:02:44]} 10. Qxc3 {[%clk 0:02:36]}  Qe7 {[%clk 0:02:44]} 11. Rc1 {[%clk 0:02:26]}  c6 {[%clk 0:02:43]} 12. Be2 {[%clk 0:02:21]}  O-O {[%clk 0:02:42]} 13. Nf3 {[%clk 0:02:13]}  Nxf3+ {[%clk 0:02:42]} 14. Bxf3 {[%clk 0:02:12]}  Be6 {[%clk 0:02:42]} 15. b3 {[%clk 0:02:11]}  h6 {[%clk 0:02:38]} 16. O-O {[%clk 0:02:08]}  Rfd8 {[%clk 0:02:39]} 17. b4 {[%clk 0:02:02]}  Bxa2 {[%clk 0:02:34]} 18. Ra1 {[%clk 0:02:01]}  Bd5 {[%clk 0:02:29]} 19. Bxd5 {[%clk 0:01:54]}  Rxd5 {[%clk 0:02:29]} 20. f3 {[%clk 0:01:46]}  a6 {[%clk 0:02:15]} 21. e4 {[%clk 0:01:34]}  Rd7 {[%clk 0:02:14]} 22. Ra5 {[%clk 0:01:23]}  Rad8 {[%clk 0:02:13]} 23. Ra2 {[%clk 0:00:48]}  Rd3 {[%clk 0:02:04]} 24. Qb2 {[%clk 0:00:45]}  Rd1 {[%clk 0:01:57]} 25. Ra1 {[%clk 0:00:38]}  Rxf1+ {[%clk 0:01:56]} 26. Rxf1 {[%clk 0:00:35]}  Qd6 {[%clk 0:01:55]} 27. Kh1 {[%clk 0:00:23]}  Qd4 {[%clk 0:01:53]} 28. Qb3 {[%clk 0:00:20]}  Qd3 {[%clk 0:01:52]} 29. Qxd3 {[%clk 0:00:19]}  Rxd3 {[%clk 0:01:51]} 30. Rb1 {[%clk 0:00:20]}  Kf8 {[%clk 0:01:40]} 31. Kg1 {[%clk 0:00:17]}  Rd2 {[%clk 0:01:38]} 32. Kf1 {[%clk 0:00:17]}  Ke7 {[%clk 0:01:38]} 33. g3 {[%clk 0:00:14]}  Rxh2 {[%clk 0:01:36]} 34. Rb3 {[%clk 0:00:12]}  h5 {[%clk 0:01:29]} 35. f4 {[%clk 0:00:12]}  f6 {[%clk 0:01:23]} 36. Ke1 {[%clk 0:00:11]}  g5 {[%clk 0:01:23]} 37. fxg5 {[%clk 0:00:09]}  fxg5 {[%clk 0:01:22]} 38. Rf3 {[%clk 0:00:10]}  Rb2 {[%clk 0:01:12]} 39. Rf5 {[%clk 0:00:09]}  Rxb4 {[%clk 0:01:11]} 40. Rxg5 {[%clk 0:00:10]}  Rxe4+ {[%clk 0:01:09]} 41. Kd2 {[%clk 0:00:10]}  Kd6 {[%clk 0:00:46]} 42. Rxh5 {[%clk 0:00:10]}  Rg4 {[%clk 0:00:45]} 43. Rh7 {[%clk 0:00:08]}  b5 {[%clk 0:00:43]} 44. Rh3 {[%clk 0:00:09]}  a5 {[%clk 0:00:41]} 45. Kc3 {[%clk 0:00:09]}  Kc5 {[%clk 0:00:35]} 46. Rh5+ {[%clk 0:00:09]}  Kb6 {[%clk 0:00:35]} 47. Rh3 {[%clk 0:00:10]}  a4 {[%clk 0:00:33]} 48. Kb2 {[%clk 0:00:09]}  c5 {[%clk 0:00:32]} 49. Kc2 {[%clk 0:00:09]}  b4 {[%clk 0:00:30]} 50. Kb2 {[%clk 0:00:10]}  Kb5 {[%clk 0:00:29]} 51. Kc2 {[%clk 0:00:09]}  a3 {[%clk 0:00:28]} 52. Kb1 {[%clk 0:00:08]}  Ka4 {[%clk 0:00:27]} 53. Kc2 {[%clk 0:00:07]}  c4 {[%clk 0:00:27]} 54. Rh8 {[%clk 0:00:06]}  Rxg3 {[%clk 0:00:24]} 55. Ra8+ {[%clk 0:00:05]}  Kb5 {[%clk 0:00:25]} 56. Rb8+ {[%clk 0:00:06]}  Kc5 {[%clk 0:00:25]} 57. Rc8+ {[%clk 0:00:06]}  Kd5 {[%clk 0:00:26]} 58. Rd8+ {[%clk 0:00:07]}  Ke6 {[%clk 0:00:26]} 59. Re8+ {[%clk 0:00:07]}  Kd7 {[%clk 0:00:26]} 60. Rb8 {[%clk 0:00:06]}  Rg2+ {[%clk 0:00:26]} 61. Kb1 {[%clk 0:00:06]}  b3 {[%clk 0:00:27]} 62. Rb7+ {[%clk 0:00:05]}  Kc6 {[%clk 0:00:27]} 63. Rb8 {[%clk 0:00:05]}  Rg1# {[%clk 0:00:27]} 0-1


[Site "https://www.chess.com"]

[Event "Titled Tuesday Blitz January 17 Late 2023"]
[White "Gavilan Diaz, Mario"]
[Black "Romero Ruscalleda, Josep"]
[WhiteFideId "2260905"]
[BlackFideId "2231859"]
[WhiteElo "2271"]
[BlackElo "2160"]
[Result "0-1"]
[Round "05"]
[TimeControl "180+2"]
[Date "2023.01.17"]
[WhiteClock "0:01:01"]
[BlackClock "0:02:03"]

1. d4 {[%clk 0:03:00]}  g6 {[%clk 0:03:00]} 2. c4 {[%clk 0:03:00]}  Bg7 {[%clk 0:03:01]} 3. e4 {[%clk 0:03:00]}  d6 {[%clk 0:03:01]} 4. Nc3 {[%clk 0:02:59]}  e5 {[%clk 0:03:02]} 5. dxe5 {[%clk 0:02:54]}  dxe5 {[%clk 0:03:02]} 6. Qxd8+ {[%clk 0:02:51]}  Kxd8 {[%clk 0:03:03]} 7. Be3 {[%clk 0:02:40]}  Bh6 {[%clk 0:03:00]} 8. O-O-O+ {[%clk 0:02:34]}  Bd7 {[%clk 0:03:00]} 9. Bxh6 {[%clk 0:02:32]}  Nxh6 {[%clk 0:02:59]} 10. Nd5 {[%clk 0:02:22]}  c6 {[%clk 0:02:48]} 11. Nf6 {[%clk 0:02:16]}  Ke7 {[%clk 0:02:48]} 12. Nxd7 {[%clk 0:02:15]}  Nxd7 {[%clk 0:02:48]} 13. f3 {[%clk 0:02:05]}  a5 {[%clk 0:02:47]} 14. g3 {[%clk 0:02:05]}  Nc5 {[%clk 0:02:46]} 15. Ne2 {[%clk 0:01:54]}  Rhd8 {[%clk 0:02:43]} 16. Bh3 {[%clk 0:01:48]}  Nd3+ {[%clk 0:02:38]} 17. Rxd3 {[%clk 0:01:14]}  Rxd3 {[%clk 0:02:37]} 18. Nc3 {[%clk 0:01:14]}  Rxf3 {[%clk 0:02:32]} 19. Na4 {[%clk 0:01:12]}  Rd8 {[%clk 0:02:26]} 20. Nc5 {[%clk 0:01:11]}  Rf2 {[%clk 0:02:21]} 21. Nxb7 {[%clk 0:01:08]}  Rdd2 {[%clk 0:02:20]} 22. Nxa5 {[%clk 0:01:08]}  Rc2+ {[%clk 0:02:20]} 23. Kd1 {[%clk 0:01:03]}  Rxb2 {[%clk 0:02:19]} 24. Kc1 {[%clk 0:01:01]}  Rxa2 {[%clk 0:02:11]} 25. Nb3 {[%clk 0:01:01]}  Rxh2 {[%clk 0:02:03]} 0-1


[Site "https://www.chess.com"]

[Event "Titled Tuesday Blitz January 17 Late 2023"]
[White "Pace, Christopher"]
[Black "Aguilar, Juan"]
[WhiteFideId "2610167"]
[BlackFideId "3800091"]
[WhiteElo "2053"]
[BlackElo "2254"]
[Result "1-0"]
[Round "05"]
[TimeControl "180+2"]
[Date "2023.01.17"]
[WhiteClock "0:00:41"]
[BlackClock "0:00:03"]

1. d4 {[%clk 0:03:00]}  g6 {[%clk 0:03:00]} 2. e4 {[%clk 0:02:59]}  Bg7 {[%clk 0:03:01]} 3. Nc3 {[%clk 0:03:00]}  d6 {[%clk 0:03:02]} 4. Be3 {[%clk 0:02:51]}  a6 {[%clk 0:03:02]} 5. a4 {[%clk 0:02:46]}  b6 {[%clk 0:03:02]} 6. Qd2 {[%clk 0:02:45]}  Nd7 {[%clk 0:02:59]} 7. f4 {[%clk 0:02:43]}  Bb7 {[%clk 0:02:56]} 8. Nf3 {[%clk 0:02:43]}  e6 {[%clk 0:02:48]} 9. Bd3 {[%clk 0:02:34]}  Ne7 {[%clk 0:02:47]} 10. O-O {[%clk 0:02:32]}  c5 {[%clk 0:02:45]} 11. e5 {[%clk 0:02:32]}  cxd4 {[%clk 0:02:30]} 12. Bxd4 {[%clk 0:02:32]}  Nc6 {[%clk 0:02:21]} 13. Ne4 {[%clk 0:02:25]}  Nxd4 {[%clk 0:01:44]} 14. Nxd6+ {[%clk 0:02:24]}  Kf8 {[%clk 0:01:45]} 15. Nxd4 {[%clk 0:02:25]}  Qc7 {[%clk 0:01:30]} 16. Nxb7 {[%clk 0:02:18]}  Qxb7 {[%clk 0:01:29]} 17. b4 {[%clk 0:02:02]}  Rd8 {[%clk 0:01:25]} 18. Qe3 {[%clk 0:02:02]}  Nb8 {[%clk 0:01:19]} 19. Be4 {[%clk 0:02:01]}  Qc7 {[%clk 0:01:18]} 20. Rad1 {[%clk 0:01:50]}  h5 {[%clk 0:01:07]} 21. Bxg6 {[%clk 0:01:40]}  Rxd4 {[%clk 0:00:50]} 22. Qxd4 {[%clk 0:01:37]}  fxg6 {[%clk 0:00:50]} 23. Qd8+ {[%clk 0:01:38]}  Qxd8 {[%clk 0:00:49]} 24. Rxd8+ {[%clk 0:01:39]}  Kf7 {[%clk 0:00:48]} 25. Rxh8 {[%clk 0:01:38]}  Bxh8 {[%clk 0:00:49]} 26. Rd1 {[%clk 0:01:33]}  Bg7 {[%clk 0:00:46]} 27. Rd6 {[%clk 0:01:32]}  b5 {[%clk 0:00:35]} 28. Rb6 {[%clk 0:01:24]}  Nd7 {[%clk 0:00:34]} 29. Rxa6 {[%clk 0:01:23]}  bxa4 {[%clk 0:00:35]} 30. Rxa4 {[%clk 0:01:23]}  Bh6 {[%clk 0:00:30]} 31. Ra7 {[%clk 0:01:18]}  Ke8 {[%clk 0:00:29]} 32. g3 {[%clk 0:01:10]}  g5 {[%clk 0:00:29]} 33. Ra8+ {[%clk 0:01:08]}  Ke7 {[%clk 0:00:29]} 34. Rh8 {[%clk 0:01:09]}  Bf8 {[%clk 0:00:25]} 35. Rh7+ {[%clk 0:01:07]}  Kd8 {[%clk 0:00:24]} 36. Rxh5 {[%clk 0:01:01]}  gxf4 {[%clk 0:00:24]} 37. gxf4 {[%clk 0:01:02]}  Bxb4 {[%clk 0:00:24]} 38. Kf2 {[%clk 0:00:56]}  Nc5 {[%clk 0:00:23]} 39. Kf3 {[%clk 0:00:56]}  Ke7 {[%clk 0:00:22]} 40. Rh7+ {[%clk 0:00:56]}  Kf8 {[%clk 0:00:21]} 41. Ra7 {[%clk 0:00:55]}  Be1 {[%clk 0:00:12]} 42. Rc7 {[%clk 0:00:50]}  Bb4 {[%clk 0:00:08]} 43. h4 {[%clk 0:00:49]}  Ke8 {[%clk 0:00:06]} 44. h5 {[%clk 0:00:49]}  Nd7 {[%clk 0:00:06]} 45. h6 {[%clk 0:00:45]}  Bf8 {[%clk 0:00:03]} 46. h7 {[%clk 0:00:41]} 1-0


[Site "https://www.chess.com"]

[Event "Titled Tuesday Blitz January 17 Late 2023"]
[White "Floresvillar Gonzalez, Luis Migu"]
[Black "Gurevich, Dmitry"]
[WhiteFideId "5100542"]
[BlackFideId "2000407"]
[WhiteElo "2043"]
[BlackElo "2393"]
[Result "0-1"]
[Round "05"]
[TimeControl "180+2"]
[Date "2023.01.17"]
[WhiteClock "0:00:01"]
[BlackClock "0:00:15"]

1. d4 {[%clk 0:03:00]}  Nf6 {[%clk 0:02:59]} 2. c3 {[%clk 0:03:00]}  g6 {[%clk 0:02:54]} 3. Bf4 {[%clk 0:03:00]}  Bg7 {[%clk 0:02:53]} 4. Nd2 {[%clk 0:03:00]}  O-O {[%clk 0:02:52]} 5. e4 {[%clk 0:03:00]}  d6 {[%clk 0:02:52]} 6. f3 {[%clk 0:02:56]}  Nbd7 {[%clk 0:02:48]} 7. Bc4 {[%clk 0:02:54]}  e5 {[%clk 0:02:43]} 8. Be3 {[%clk 0:02:54]}  exd4 {[%clk 0:02:38]} 9. Bxd4 {[%clk 0:02:53]}  c5 {[%clk 0:02:23]} 10. Bf2 {[%clk 0:02:47]}  d5 {[%clk 0:02:19]} 11. exd5 {[%clk 0:02:45]}  Re8+ {[%clk 0:02:09]} 12. Ne2 {[%clk 0:02:45]}  Ne5 {[%clk 0:02:08]} 13. O-O {[%clk 0:02:40]}  b6 {[%clk 0:01:58]} 14. Bb5 {[%clk 0:02:35]}  Bd7 {[%clk 0:01:56]} 15. Bxd7 {[%clk 0:02:33]}  Qxd7 {[%clk 0:01:55]} 16. c4 {[%clk 0:02:33]}  Nd3 {[%clk 0:01:54]} 17. Qc2 {[%clk 0:02:27]}  Nxf2 {[%clk 0:01:45]} 18. Rxf2 {[%clk 0:02:26]}  b5 {[%clk 0:01:44]} 19. Rd1 {[%clk 0:02:16]}  bxc4 {[%clk 0:01:30]} 20. Qxc4 {[%clk 0:02:14]}  Qxd5 {[%clk 0:01:29]} 21. Qxd5 {[%clk 0:02:08]}  Nxd5 {[%clk 0:01:28]} 22. Ne4 {[%clk 0:02:07]}  Ne3 {[%clk 0:01:20]} 23. Rd2 {[%clk 0:01:55]}  Nc4 {[%clk 0:01:16]} 24. Rc2 {[%clk 0:01:54]}  Nxb2 {[%clk 0:01:15]} 25. Nxc5 {[%clk 0:01:40]}  Rac8 {[%clk 0:01:13]} 26. Kf1 {[%clk 0:01:25]}  Nd3 {[%clk 0:01:09]} 27. Nxd3 {[%clk 0:01:08]}  Rxc2 {[%clk 0:01:08]} 28. Nef4 {[%clk 0:01:05]}  Rc4 {[%clk 0:00:57]} 29. h4 {[%clk 0:00:52]}  Re3 {[%clk 0:00:49]} 30. g3 {[%clk 0:00:48]}  Rd4 {[%clk 0:00:42]} 31. Kg2 {[%clk 0:00:25]}  Rdxd3 {[%clk 0:00:40]} 32. Nxd3 {[%clk 0:00:24]}  Rxd3 {[%clk 0:00:40]} 33. Rc2 {[%clk 0:00:24]}  Ra3 {[%clk 0:00:40]} 34. f4 {[%clk 0:00:18]}  h5 {[%clk 0:00:38]} 35. Kh3 {[%clk 0:00:16]}  Rc3 {[%clk 0:00:35]} 36. Rf2 {[%clk 0:00:14]}  f5 {[%clk 0:00:33]} 37. Rd2 {[%clk 0:00:11]}  a5 {[%clk 0:00:31]} 38. Rd6 {[%clk 0:00:07]}  Kh7 {[%clk 0:00:30]} 39. Rd5 {[%clk 0:00:03]}  Ra3 {[%clk 0:00:20]} 40. Rd2 {[%clk 0:00:02]}  a4 {[%clk 0:00:17]} 41. Rg2 {[%clk 0:00:03]}  Rc3 {[%clk 0:00:15]} 42. Rf2 {[%clk 0:00:02]}  a3 {[%clk 0:00:15]} 43. Kg2 {[%clk 0:00:01]}  Rc1 {[%clk 0:00:15]} 44. Re2 {[%clk 0:00:01]}  Rb1 {[%clk 0:00:15]} 45. Kf2 {[%clk 0:00:01]}  Rb2 {[%clk 0:00:15]} 0-1


[Site "https://www.chess.com"]

[Event "Titled Tuesday Blitz January 17 Late 2023"]
[White "Qiao, Cindy"]
[Black "Almedina Ortiz, Edgardo J."]
[WhiteFideId "2620243"]
[BlackFideId "3100197"]
[WhiteElo "1785"]
[BlackElo "2156"]
[Result "1-0"]
[Round "05"]
[TimeControl "180+2"]
[Date "2023.01.17"]
[WhiteClock "0:00:15"]
[BlackClock "0:00:03"]

1. d4 {[%clk 0:03:00]}  f5 {[%clk 0:02:59]} 2. Bg5 {[%clk 0:03:00]}  g6 {[%clk 0:02:48]} 3. h4 {[%clk 0:03:00]}  h6 {[%clk 0:02:47]} 4. Bf4 {[%clk 0:03:00]}  Bg7 {[%clk 0:02:47]} 5. e3 {[%clk 0:03:00]}  d6 {[%clk 0:02:46]} 6. Nc3 {[%clk 0:03:00]}  Nf6 {[%clk 0:02:45]} 7. Bc4 {[%clk 0:02:59]}  e6 {[%clk 0:02:35]} 8. Qf3 {[%clk 0:02:50]}  O-O {[%clk 0:02:19]} 9. O-O-O {[%clk 0:02:36]}  Kh7 {[%clk 0:02:13]} 10. Nh3 {[%clk 0:02:30]}  Qe7 {[%clk 0:02:02]} 11. Ng5+ {[%clk 0:02:14]}  Kg8 {[%clk 0:02:00]} 12. Nh3 {[%clk 0:01:57]}  Nc6 {[%clk 0:01:44]} 13. Bb3 {[%clk 0:01:44]}  Kh8 {[%clk 0:01:38]} 14. Qg3 {[%clk 0:01:34]}  e5 {[%clk 0:00:55]} 15. Qxg6 {[%clk 0:01:14]}  exf4 {[%clk 0:00:54]} 16. Nxf4 {[%clk 0:01:15]}  Na5 {[%clk 0:00:49]} 17. Qg3 {[%clk 0:01:12]}  Nxb3+ {[%clk 0:00:48]} 18. axb3 {[%clk 0:01:13]}  Qf7 {[%clk 0:00:41]} 19. Ng6+ {[%clk 0:01:13]}  Kh7 {[%clk 0:00:41]} 20. Nxf8+ {[%clk 0:01:13]}  Bxf8 {[%clk 0:00:36]} 21. Qf3 {[%clk 0:01:09]}  d5 {[%clk 0:00:32]} 22. Qe2 {[%clk 0:01:05]}  c6 {[%clk 0:00:31]} 23. Qd3 {[%clk 0:01:03]}  Kh8 {[%clk 0:00:28]} 24. Ne2 {[%clk 0:01:03]}  Bd6 {[%clk 0:00:27]} 25. f3 {[%clk 0:00:57]}  Bd7 {[%clk 0:00:25]} 26. Rdg1 {[%clk 0:00:57]}  Rg8 {[%clk 0:00:24]} 27. Qd2 {[%clk 0:00:50]}  Kh7 {[%clk 0:00:22]} 28. Qd3 {[%clk 0:00:49]}  Kh8 {[%clk 0:00:22]} 29. Qd2 {[%clk 0:00:45]}  Qf8 {[%clk 0:00:18]} 30. Kb1 {[%clk 0:00:45]}  Rg6 {[%clk 0:00:15]} 31. Nc1 {[%clk 0:00:44]}  Kh7 {[%clk 0:00:13]} 32. Nd3 {[%clk 0:00:44]}  Qe7 {[%clk 0:00:12]} 33. Re1 {[%clk 0:00:37]}  Bg3 {[%clk 0:00:10]} 34. Re2 {[%clk 0:00:34]}  Bc8 {[%clk 0:00:10]} 35. Nc5 {[%clk 0:00:30]}  Bd6 {[%clk 0:00:08]} 36. Nd3 {[%clk 0:00:30]}  Qg7 {[%clk 0:00:07]} 37. Ne5 {[%clk 0:00:26]}  Bxe5 {[%clk 0:00:07]} 38. dxe5 {[%clk 0:00:27]}  Nh5 {[%clk 0:00:07]} 39. Ree1 {[%clk 0:00:22]}  Qxe5 {[%clk 0:00:06]} 40. Qd3 {[%clk 0:00:18]}  Ng3 {[%clk 0:00:06]} 41. Rhg1 {[%clk 0:00:18]}  h5 {[%clk 0:00:05]} 42. Qd2 {[%clk 0:00:17]}  Qe7 {[%clk 0:00:04]} 43. Qf2 {[%clk 0:00:16]}  Qxh4 {[%clk 0:00:03]} 44. Rh1 {[%clk 0:00:14]}  Qxh1 {[%clk 0:00:02]} 45. Rxh1 {[%clk 0:00:14]}  Nxh1 {[%clk 0:00:03]} 46. Qh4 {[%clk 0:00:15]}  Kh6 {[%clk 0:00:03]} 47. Qxh1 {[%clk 0:00:15]} 1-0


[Site "https://www.chess.com"]